bitfinex/quotes_BTCUSD_20250927
["timestamp","ask_amount","ask_price","bid_price","bid_amount"]
[1758972403537,1.28298991,109630.0,109620.0,0.02052886]
[1758972403748,1.87316677,109630.0,109620.0,0.02052886]
[1758972406109,1.87316328,109630.0,109620.0,0.02052886]
[1758972406322,1.56726642,109630.0,109620.0,0.02052886]
[1758972406524,1.87316328,109630.0,109620.0,0.02052886]
[1758972406941,1.87316472,109630.0,109620.0,0.02052886]
[1758972407185,1.58888472,109630.0,109620.0,0.02052886]
[1758972407382,1.8720617,109630.0,109620.0,0.02052886]
[1758972407582,1.8720617,109630.0,109620.0,0.04798533]
[1758972408354,1.86350126,109630.0,109620.0,0.04798533]
[1758972410883,1.64368526,109630.0,109620.0,0.04798533]
[1758972412294,1.64372526,109630.0,109620.0,0.04798533]
[1758972412476,1.35908526,109630.0,109620.0,0.04798533]
[1758972412685,1.2825267,109630.0,109620.0,0.04798533]
[1758972412903,1.55285298,109630.0,109620.0,0.04798533]
[1758972415811,1.56716608,109630.0,109620.0,0.04798533]
[1758972416410,1.28252608,109630.0,109620.0,0.04798533]
[1758972416614,1.56716608,109630.0,109620.0,0.04798533]
[1758972422504,1.05318778,109630.0,109620.0,0.29556847]
[1758972422718,0.99782778,109630.0,109620.0,0.27732363]
[1758972422845,1.33782778,109630.0,109620.0,0.27732363]
[1758972423252,0.87075597,109630.0,109620.0,0.27732363]
[1758972423526,1.15539597,109630.0,109620.0,0.27732363]
[1758972423761,0.87075597,109630.0,109620.0,0.27732363]
[1758972424179,0.85219097,109630.0,109620.0,0.27732363]
[1758972424393,0.0143131,109630.0,109620.0,0.72126228]
[1758972424626,0.5143131,109630.0,109620.0,1.00394228]
[1758972424869,0.5,109630.0,109620.0,0.71926228]
[1758972425079,0.5,109630.0,109620.0,1.01794228]
[1758972425285,0.5,109630.0,109620.0,1.00394228]
[1758972425706,0.5,109630.0,109620.0,1.02394228]
[1758972425933,0.5,109630.0,109620.0,1.02794228]
[1758972428111,0.51431089,109630.0,109620.0,1.02794228]
[1758972428940,0.51431089,109630.0,109620.0,0.56081383]
[1758972429139,0.01431089,109630.0,109620.0,0.38689723]
[1758972429345,0.01431089,109630.0,109620.0,0.61623553]
[1758972429958,0.01431089,109630.0,109620.0,0.33147553]
[1758972430165,0.01431089,109630.0,109620.0,0.61623553]
[1758972431375,0.01431089,109630.0,109620.0,0.84557383]
[1758972431638,0.01431089,109630.0,109620.0,0.56081383]
[1758972431774,0.01431089,109630.0,109620.0,0.84565383]
[1758972432175,0.01431089,109630.0,109620.0,0.84569383]
[1758972432787,0.01431089,109630.0,109620.0,0.38701723]
[1758972432991,0.01431089,109630.0,109620.0,0.33147553]
[1758972433310,0.01431089,109630.0,109620.0,0.61639553]
[1758972433517,0.01431089,109630.0,109620.0,0.84573383]
[1758972434181,0.01431089,109630.0,109620.0,0.61639553]
[1758972435197,0.01431089,109630.0,109620.0,0.33147553]
[1758972435823,0.01431089,109630.0,109620.0,0.61639553]
[1758972436024,0.54402669,109640.0,109630.0,0.0301519]
[1758972436227,1.03243769,109640.0,109630.0,0.0301519]
[1758972436432,1.03243769,109640.0,109630.0,0.0582619]
[1758972436638,1.03243769,109640.0,109630.0,0.3431819]
[1758972436876,1.03243769,109640.0,109630.0,0.37063026]
[1758972437076,1.02435981,109640.0,109630.0,0.37063026]
[1758972437922,1.02435981,109640.0,109630.0,0.37363026]
[1758972438658,1.02435981,109640.0,109630.0,0.38763026]
[1758972439082,1.03867051,109640.0,109630.0,0.38763026]
[1758972441329,1.04507849,109640.0,109630.0,0.38763026]
[1758972442781,1.04507849,109640.0,109630.0,0.10271026]
[1758972442980,1.04507849,109640.0,109630.0,0.38759026]
[1758972443797,1.04705849,109640.0,109630.0,0.06734836]
[1758972444211,1.04681831,109640.0,109630.0,0.06734836]
[1758972445046,1.03250761,109640.0,109630.0,0.06931836]
[1758972445269,1.03250761,109640.0,109630.0,0.07249836]
[1758972447546,1.26184591,109640.0,109630.0,0.07249836]
[1758972447800,1.26185104,109640.0,109630.0,0.07249836]
[1758972448193,1.27616166,109640.0,109630.0,0.07249836]
[1758972448579,1.04682336,109640.0,109630.0,0.07249836]
[1758972448781,1.27616166,109640.0,109630.0,0.07249836]
[1758972450060,1.27418014,109640.0,109630.0,0.07249836]
[1758972453834,1.27616014,109640.0,109630.0,0.06734836]
[1758972455803,1.27616014,109640.0,109630.0,0.06931836]
[1758972457050,1.04682184,109640.0,109630.0,0.07249836]
[1758972457231,1.27616014,109640.0,109630.0,0.07249836]
[1758972459721,1.50549844,109640.0,109630.0,0.07249836]
[1758972460471,1.04682184,109640.0,109630.0,0.07249836]
[1758972460681,1.27616014,109640.0,109630.0,0.07249836]
[1758972461084,1.27616014,109640.0,109630.0,0.06931836]
[1758972462161,1.04682184,109640.0,109630.0,0.06931836]
[1758972462383,1.27616014,109640.0,109630.0,0.06931836]
[1758972462714,0.9444782,109640.0,109630.0,0.06931836]
[1758972464438,0.7283012,109640.0,109630.0,0.06931836]
[1758972464958,0.72831348,109640.0,109630.0,0.06931836]
[1758972466236,0.95765178,109640.0,109630.0,0.07249836]
[1758972468693,1.28334116,109640.0,109630.0,0.07249836]
[1758972470755,1.10092599,109640.0,109630.0,0.07249836]
[1758972471361,1.28334116,109640.0,109630.0,0.07249836]
[1758972471511,1.29765178,109640.0,109630.0,0.07249836]
[1758972473202,1.11325661,109640.0,109630.0,0.07249836]
[1758972473418,1.10683122,109640.0,109630.0,0.07249836]
[1758972474722,0.95386914,109640.0,109630.0,0.07249836]
[1758972475129,0.44,109640.0,109630.0,0.07249836]
[1758972475348,0.74571452,109640.0,109630.0,0.07249836]
[1758972475490,0.64571452,109640.0,109630.0,0.07249836]
[1758972476110,0.74571452,109640.0,109630.0,0.07249836]
[1758972476311,0.64571452,109640.0,109630.0,0.07249836]
[1758972477583,0.34,109640.0,109630.0,0.07249836]
[1758972477831,0.34,109640.0,109630.0,0.30332525]
[1758972478021,0.02463,109650.0,109630.0,0.28508207]
[1758972478290,0.36463,109650.0,109640.0,0.33619341]
[1758972478509,0.34,109650.0,109640.0,0.3200319]
[1758972478710,0.53670746,109650.0,109640.0,0.37078772]
[1758972479336,0.53670746,109650.0,109640.0,0.08614772]
[1758972479537,0.53670746,109650.0,109640.0,0.37078772]
[1758972480172,0.53670746,109650.0,109640.0,0.37178772]
[1758972480707,0.53670746,109650.0,109640.0,0.38078772]
[1758972481616,0.53670746,109650.0,109640.0,0.09614772]
[1758972481805,0.84242198,109650.0,109640.0,0.38070772]
[1758972482221,0.84242198,109650.0,109640.0,0.09614772]
[1758972482421,0.84242198,109650.0,109640.0,0.38070772]
[1758972485302,0.82811306,109650.0,109640.0,0.38070772]
[1758972487909,0.83009306,109650.0,109640.0,0.09614772]
[1758972488142,0.83009306,109650.0,109640.0,0.37754772]
[1758972488351,0.83009306,109650.0,109640.0,0.09298772]
[1758972488352,0.84440219,109650.0,109640.0,0.09298772]
[1758972488778,0.84440219,109650.0,109640.0,0.31406772]
[1758972492087,0.53868767,109650.0,109640.0,0.31406772]
[1758972492323,0.84440219,109650.0,109640.0,0.31406772]
[1758972493359,0.84440219,109650.0,109640.0,0.09298772]
[1758972493510,0.84591219,109650.0,109640.0,0.37538772]
[1758972493980,0.84591219,109650.0,109640.0,0.09090772]
[1758972494178,0.84440219,109650.0,109640.0,0.37538772]
[1758972494584,0.84440219,109650.0,109640.0,0.09090772]
[1758972494743,0.84440219,109650.0,109640.0,0.37538772]
[1758972494945,0.84440219,109650.0,109640.0,0.09090772]
[1758972496228,0.83009306,109650.0,109640.0,0.09090772]
[1758972499416,0.84440234,109650.0,109640.0,0.09090772]
[1758972502221,0.53868782,109650.0,109640.0,0.09090772]
[1758972502459,0.84440234,109650.0,109640.0,0.09287772]
[1758972504214,0.84440234,109650.0,109640.0,0.09090772]
[1758972504426,0.84591234,109650.0,109640.0,0.09090772]
[1758972504623,0.84440234,109650.0,109640.0,0.09090772]
[1758972505671,0.50440234,109650.0,109640.0,0.09090772]
[1758972506033,0.19868782,109650.0,109640.0,0.09287772]
[1758972506235,0.19868782,109650.0,109640.0,0.09583772]
[1758972506463,0.50440234,109650.0,109640.0,0.09287772]
[1758972507568,0.84440234,109650.0,109640.0,0.09287772]
[1758972509243,0.84440234,109650.0,109640.0,0.09090772]
[1758972512292,0.83009306,109650.0,109640.0,0.09090772]
[1758972515371,0.84440228,109650.0,109640.0,0.09090772]
[1758972515512,0.85082556,109650.0,109640.0,0.09090772]
[1758972517611,0.84440228,109650.0,109640.0,0.09090772]
[1758972518158,0.8508258,109650.0,109640.0,0.09090772]
[1758972518842,0.84440228,109650.0,109640.0,0.09090772]
[1758972521575,0.84262709,109650.0,109640.0,0.06075582]
[1758972521782,0.84905122,109650.0,109640.0,0.06075582]
[1758972523591,0.84905171,109650.0,109640.0,0.06075582]
[1758972525541,0.94905171,109650.0,109640.0,0.06075582]
[1758972527724,1.22690709,109650.0,109640.0,0.06075582]
[1758972527929,1.23333186,109650.0,109640.0,0.06075582]
[1758972529149,1.21906264,109650.0,109640.0,0.06075582]
[1758972529442,0.93474264,109650.0,109640.0,0.06075582]
[1758972530160,1.21910264,109650.0,109640.0,0.06075582]
[1758972531406,1.23341217,109650.0,109640.0,0.06075582]
[1758972531800,1.23337217,109650.0,109640.0,0.06075582]
[1758972532163,0.94905176,109650.0,109640.0,0.06075582]
[1758972532475,1.23337176,109650.0,109640.0,0.06075582]
[1758972533448,0.94905176,109650.0,109640.0,0.06075582]
[1758972533807,1.23337176,109650.0,109640.0,0.06075582]
[1758972534215,1.21906223,109650.0,109640.0,0.06075582]
[1758972536537,1.37199465,109650.0,109640.0,0.06075582]
[1758972537573,1.38630479,109650.0,109640.0,0.06075582]
[1758972542860,1.10198479,109650.0,109640.0,0.06075582]
[1758972543057,1.38630479,109650.0,109640.0,0.06075582]
[1758972545134,1.10198479,109650.0,109640.0,0.06075582]
[1758972545306,1.38630479,109650.0,109640.0,0.06075582]
[1758972545897,1.10198479,109650.0,109640.0,0.06075582]
[1758972546113,1.38630479,109650.0,109640.0,0.06075582]
[1758972547856,1.38629755,109650.0,109640.0,0.06075582]
[1758972551221,1.10197755,109650.0,109640.0,0.06075582]
[1758972551426,1.38629755,109650.0,109640.0,0.06075582]
[1758972551670,1.10197755,109650.0,109640.0,0.06075582]
[1758972551871,1.38629755,109650.0,109640.0,0.06075582]
[1758972552827,1.04609274,109650.0,109640.0,0.06075582]
[1758972554374,1.03248336,109650.0,109640.0,0.06075582]
[1758972556284,0.74816336,109650.0,109640.0,0.06075582]
[1758972556480,1.03248336,109650.0,109640.0,0.06075582]
[1758972561029,0.57383642,109650.0,109640.0,0.06285582]
[1758972561289,1.03248336,109650.0,109640.0,0.06589582]
[1758972562749,0.8096595,109650.0,109640.0,0.06589582]
[1758972563059,2.8679355,109650.0,109640.0,0.06589582]
[1758972563282,2.7277395,109650.0,109640.0,0.06589582]
[1758972563711,2.4267345,109650.0,109640.0,0.06589582]
[1758972564291,2.3515085,109650.0,109640.0,0.06589582]
[1758972564894,2.2927915,109650.0,109640.0,0.06589582]
[1758972568142,2.6327915,109650.0,109640.0,0.06589582]
[1758972568462,2.3484715,109650.0,109640.0,0.06589582]
[1758972569316,2.6327915,109650.0,109640.0,0.06589582]
[1758972571618,2.6327915,109650.0,109640.0,0.06285582]
[1758972574840,2.63921333,109650.0,109640.0,0.06285582]
[1758972575548,2.45489845,109650.0,109640.0,0.06285582]
[1758972575883,2.63729699,109650.0,109640.0,0.06285582]
[1758972581548,2.01195237,109650.0,109640.0,0.06285582]
[1758972581757,2.75487931,109650.0,109640.0,0.06589582]
[1758972585189,2.47059931,109650.0,109640.0,0.06589582]
[1758972585396,2.75487931,109650.0,109640.0,0.06589582]
[1758972586835,2.74845748,109650.0,109640.0,0.06589582]
[1758972587023,2.75487774,109650.0,109640.0,0.06589582]
[1758972590747,2.75487774,109650.0,109640.0,0.03845]
[1758972596665,2.74056774,109650.0,109640.0,0.03845]
[1758972598569,2.45628774,109650.0,109640.0,0.03845]
[1758972598751,2.58764395,109650.0,109640.0,0.03845]
[1758972600101,2.60195402,109650.0,109640.0,0.03845]
[1758972607181,2.58764395,109650.0,109640.0,0.03845]
[1758972610170,2.60195402,109650.0,109640.0,0.03845]
[1758972615606,2.60195174,109650.0,109640.0,0.03845]
[1758972616569,2.58764167,109650.0,109640.0,0.03845]
[1758972619539,2.60195174,109650.0,109640.0,0.03845]
[1758972620350,2.60191174,109650.0,109640.0,0.03845]
[1758972627089,2.58760167,109650.0,109640.0,0.03845]
[1758972630051,2.60191186,109650.0,109640.0,0.03845]
[1758972632293,2.60191186,109650.0,109640.0,0.03541]
[1758972634151,2.58760167,109650.0,109640.0,0.03541]
[1758972635524,2.58760167,109650.0,109640.0,0.03331]
[1758972637100,2.60191186,109650.0,109640.0,0.03331]
[1758972646204,2.39633905,109650.0,109640.0,0.03331]
[1758972647410,2.38202886,109650.0,109640.0,0.03331]
[1758972650096,2.07630571,109650.0,109640.0,0.03331]
[1758972650428,2.39633905,109650.0,109640.0,0.03331]
[1758972651117,2.39633905,109650.0,109640.0,0.06076092]
[1758972654945,2.19854155,109650.0,109640.0,0.06076092]
[1758972658694,2.35147448,109650.0,109640.0,0.06076092]
[1758972664848,2.66951399,109650.0,109640.0,0.06076092]
[1758972665076,2.66951399,109650.0,109640.0,0.03331]
[1758972665235,2.69696742,109650.0,109640.0,0.03331]
[1758972665390,2.68265723,109650.0,109640.0,0.03331]
[1758972668161,2.68265723,109650.0,109640.0,1.014996]
[1758972668363,2.69696814,109650.0,109640.0,1.014996]
[1758972671758,2.68265723,109650.0,109640.0,1.014996]
[1758972671962,2.77765723,109650.0,109640.0,1.014996]
[1758972672180,2.39841723,109650.0,109640.0,1.014996]
[1758972672394,2.68894576,109650.0,109640.0,1.014996]
[1758972672593,2.70325669,109650.0,109640.0,1.014996]
[1758972672908,2.32401669,109650.0,109640.0,1.014996]
[1758972673138,2.70325669,109650.0,109640.0,1.014996]
[1758972675190,2.68894576,109650.0,109640.0,1.014996]
[1758972676398,2.30970576,109650.0,109640.0,1.014996]
[1758972676607,2.33753553,109650.0,109640.0,1.014996]
[1758972676819,2.71677553,109650.0,109640.0,1.014996]
[1758972678232,2.73108677,109650.0,109640.0,1.014996]
[1758972678446,2.324017,109650.0,109640.0,1.014996]
[1758972678617,2.703257,109650.0,109640.0,1.014996]
[1758972680986,2.324017,109650.0,109640.0,1.014996]
[1758972681257,2.703257,109650.0,109640.0,1.014996]
[1758972681475,2.47392896,109650.0,109640.0,1.014996]
[1758972682070,2.47392896,109650.0,109640.0,1.020256]
[1758972689971,2.47392896,109650.0,109640.0,1.017066]
[1758972690186,2.78886393,109650.0,109640.0,1.005946]
[1758972691158,2.703257,109650.0,109640.0,1.005946]
[1758972691971,2.70325183,109650.0,109640.0,1.005946]
[1758972694517,2.49464348,109650.0,109640.0,1.005946]
[1758972694743,2.11540348,109650.0,109640.0,1.005946]
[1758972694944,2.11540348,109650.0,109640.0,1.008016]
[1758972695126,2.48037224,109650.0,109640.0,1.008016]
[1758972695454,2.48037224,109650.0,109640.0,1.005946]
[1758972695656,2.50890993,109650.0,109640.0,1.005946]
[1758972696215,2.48037224,109650.0,109640.0,1.005946]
[1758972698567,2.49468367,109650.0,109640.0,1.005946]
[1758972699000,2.49468367,109650.0,109640.0,1.008016]
[1758972704486,2.49468367,109650.0,109640.0,1.011206]
[1758972707118,2.48037224,109650.0,109640.0,1.011206]
[1758972709262,2.2510442,109650.0,109640.0,1.011206]
[1758972710260,2.26535587,109650.0,109640.0,1.011206]
[1758972713994,2.49468391,109650.0,109640.0,1.011206]
[1758972715628,2.26535587,109650.0,109640.0,1.011206]
[1758972718855,2.2510442,109650.0,109640.0,1.011206]
[1758972720534,2.4039993,109650.0,109640.0,1.011206]
[1758972721791,2.41831092,109650.0,109640.0,1.011206]
[1758972722563,1.80669974,109650.0,109640.0,1.011206]
[1758972722776,2.41831092,109650.0,109640.0,1.011206]
[1758972724705,2.41831595,109650.0,109640.0,1.011206]
[1758972725444,2.40400433,109650.0,109640.0,1.011206]
[1758972726907,2.02472433,109650.0,109640.0,1.011206]
[1758972727065,2.40400433,109650.0,109640.0,1.011206]
[1758972727274,2.02472433,109650.0,109640.0,1.011206]
[1758972727484,2.11980433,109650.0,109640.0,1.011206]
[1758972727700,2.09819874,109650.0,109640.0,1.011206]
[1758972728250,2.11251031,109650.0,109640.0,1.011206]
[1758972728438,1.89403156,109650.0,109640.0,1.011206]
[1758972733272,1.89403188,109650.0,109640.0,1.011206]
[1758972735089,1.87972031,109650.0,109640.0,1.011206]
[1758972735578,1.50044031,109650.0,109640.0,1.011206]
[1758972735802,1.87972031,109650.0,109640.0,1.011206]
[1758972738123,1.89403186,109650.0,109640.0,1.011206]
[1758972743854,1.58822627,109650.0,109640.0,1.011206]
[1758972744098,1.89403186,109650.0,109640.0,1.011206]
[1758972745310,1.87972031,109650.0,109640.0,1.011206]
[1758972748383,1.89403221,109650.0,109640.0,1.011206]
[1758972751677,1.51475221,109650.0,109640.0,1.011206]
[1758972751975,1.89419221,109650.0,109640.0,1.011206]
[1758972752568,1.51475221,109650.0,109640.0,1.011206]
[1758972752750,1.89419221,109650.0,109640.0,1.011206]
[1758972753890,1.20894662,109650.0,109640.0,1.011206]
[1758972754104,1.46581319,109650.0,109640.0,1.011206]
[1758972754313,1.77161878,109650.0,109640.0,1.011206]
[1758972754505,1.75730688,109650.0,109640.0,1.011206]
[1758972757786,1.7716177,109650.0,109640.0,1.011206]
[1758972759795,1.54678252,109650.0,109640.0,1.011206]
[1758972759996,0.66438398,109650.0,109640.0,1.011206]
[1758972760199,1.13114252,109650.0,109640.0,1.03865423]
[1758972761574,1.12472436,109650.0,109640.0,1.03865423]
[1758972762684,1.12472436,109650.0,109640.0,1.32297423]
[1758972764472,1.12472436,109650.0,109640.0,1.03865423]
[1758972764629,1.12472436,109650.0,109640.0,1.32293423]
[1758972765006,1.11041354,109650.0,109640.0,1.32293423]
[1758972765275,1.11041354,109650.0,109640.0,1.03865423]
[1758972767926,1.12472346,109650.0,109640.0,1.03865423]
[1758972774916,1.11041354,109650.0,109640.0,1.03865423]
[1758972777930,1.12472351,109650.0,109640.0,1.03865423]
[1758972778822,0.78472351,109650.0,109640.0,1.03865423]
[1758972779329,0.79113297,109650.0,109640.0,1.03865423]
[1758972780709,1.02037384,109650.0,109640.0,1.03865423]
[1758972784464,1.34606387,109650.0,109640.0,1.03865423]
[1758972786821,1.15180271,109650.0,109640.0,1.03865423]
[1758972787054,1.04240887,109650.0,109640.0,1.03865423]
[1758972787231,2.805258,109650.0,109640.0,1.03865423]
[1758972787404,3.04880884,109650.0,109640.0,1.03865423]
[1758972790567,2.57519078,109650.0,109640.0,1.03865423]
[1758972790760,2.75758932,109650.0,109640.0,1.03865423]
[1758972791642,3.04174932,109650.0,109640.0,1.03865423]
[1758972793650,2.60838732,109650.0,109640.0,1.03865423]
[1758972794051,2.26883738,109650.0,109640.0,1.03865423]
[1758972795244,2.25452741,109650.0,109640.0,1.03865423]
[1758972796262,2.02528654,109650.0,109640.0,1.03865423]
[1758972796462,2.25452741,109650.0,109640.0,1.03865423]
[1758972798049,2.26883738,109650.0,109640.0,1.03865423]
[1758972798758,2.03959651,109650.0,109640.0,1.03865423]
[1758972798955,2.26883738,109650.0,109640.0,1.03865423]
[1758972802573,2.61525686,109650.0,109640.0,1.03865423]
[1758972806265,2.60094689,109650.0,109640.0,1.03865423]
[1758972809040,2.61525686,109650.0,109640.0,1.03865423]
[1758972812076,2.61525686,109650.0,109640.0,1.03339423]
[1758972815267,2.60094689,109650.0,109640.0,1.03339423]
[1758972815470,2.37170602,109650.0,109640.0,1.03339423]
[1758972815714,2.60090689,109650.0,109640.0,1.03550423]
[1758972818212,2.61521692,109650.0,109640.0,1.03550423]
[1758972818420,2.61521692,109650.0,109640.0,1.03859423]
[1758972819204,2.38597605,109650.0,109640.0,1.03859423]
[1758972819408,2.61521692,109650.0,109640.0,1.03859423]
[1758972825599,2.31678689,109650.0,109640.0,1.03859423]
[1758972825801,2.60090689,109650.0,109640.0,1.03859423]
[1758972828149,2.61521692,109650.0,109640.0,1.03859423]
[1758972829603,2.38597605,109650.0,109640.0,1.03859423]
[1758972829813,2.61521692,109650.0,109640.0,1.03859423]
[1758972832412,2.33109692,109650.0,109640.0,1.03859423]
[1758972832618,2.61521692,109650.0,109640.0,1.03859423]
[1758972834261,2.33109692,109650.0,109640.0,1.03859423]
[1758972834487,2.61521692,109650.0,109640.0,1.03859423]
[1758972835135,2.60090689,109650.0,109640.0,1.03859423]
[1758972837943,2.61521692,109650.0,109640.0,1.03859423]
[1758972839780,2.61517692,109650.0,109640.0,1.03859423]
[1758972842474,2.84441779,109650.0,109640.0,1.03339423]
[1758972842630,2.69167946,109650.0,109640.0,1.03339423]
[1758972844316,2.47462687,109650.0,109640.0,1.03339423]
[1758972844535,4.75589046,109650.0,109640.0,1.03339423]
[1758972844745,4.50231443,109650.0,109640.0,1.03339423]
[1758972845170,4.39321143,109650.0,109640.0,1.03339423]
[1758972846275,4.37201843,109650.0,109640.0,1.03339423]
[1758972846574,4.16962643,109650.0,109640.0,1.03339423]
[1758972847022,4.14744843,109650.0,109640.0,1.03339423]
[1758972847646,4.16175846,109650.0,109640.0,1.03339423]
[1758972853695,3.9881717,109650.0,109640.0,1.03339423]
[1758972854197,3.81533898,109650.0,109640.0,1.03339423]
[1758972859148,3.42200398,109650.0,109640.0,1.03859423]
[1758972859348,3.70608398,109650.0,109640.0,1.03859423]
[1758972865647,3.71249845,109650.0,109640.0,1.03859423]
[1758972873226,3.71249845,109650.0,109640.0,1.03339423]
[1758972874947,3.63184545,109650.0,109640.0,1.03543423]
[1758972875143,3.55354345,109650.0,109640.0,1.03543423]
[1758972877545,3.55354345,109650.0,109640.0,1.03839423]
[1758972878165,3.53923342,109650.0,109640.0,1.03839423]
[1758972880900,3.55354346,109650.0,109640.0,1.03839423]
[1758972885125,3.24780005,109650.0,109640.0,1.03839423]
[1758972885336,3.55354346,109650.0,109640.0,1.03839423]
[1758972887679,3.37114492,109650.0,109640.0,1.03839423]
[1758972887884,3.55354346,109650.0,109640.0,1.03839423]
[1758972889180,3.18972801,109650.0,109640.0,1.03839423]
[1758972889388,3.49547142,109650.0,109640.0,1.03839423]
[1758972891797,3.50978146,109650.0,109640.0,1.03839423]
[1758972893030,3.20403805,109650.0,109640.0,1.03839423]
[1758972893314,3.50978146,109650.0,109640.0,1.03839423]
[1758972899339,3.49547142,109650.0,109640.0,1.03839423]
[1758972899791,2.66204042,109650.0,109640.0,1.03839423]
[1758972900101,2.94608042,109650.0,109640.0,1.03839423]
[1758972902247,2.96039046,109650.0,109640.0,1.03839423]
[1758972904640,3.45323855,109650.0,109640.0,1.03839423]
[1758972906343,3.43892851,109650.0,109640.0,1.03839423]
[1758972909280,3.45323838,109650.0,109640.0,1.03839423]
[1758972914740,3.45324188,109650.0,109640.0,1.03839423]
[1758972915520,3.43893201,109650.0,109640.0,1.03839423]
[1758972918486,3.45324217,109650.0,109640.0,1.03339423]
[1758972920632,3.7326131,109650.0,109640.0,1.005946]
[1758972921050,3.760066,109650.0,109640.0,1.005946]
[1758972923207,3.76005924,109650.0,109640.0,1.005946]
[1758972925424,3.74574908,109650.0,109640.0,1.005946]
[1758972926953,3.47602055,109650.0,109640.0,1.005946]
[1758972927133,3.85514055,109650.0,109640.0,1.005946]
[1758972930714,3.76006055,109650.0,109640.0,1.005946]
[1758972931346,3.85514055,109650.0,109640.0,1.005946]
[1758972932271,3.6569187,109650.0,109640.0,1.005946]
[1758972932476,3.83931724,109650.0,109640.0,1.005946]
[1758972933699,3.46019724,109650.0,109640.0,1.005946]
[1758972934454,3.83931724,109650.0,109640.0,1.005946]
[1758972934658,3.82500577,109650.0,109640.0,1.005946]
[1758972936026,3.82499215,109650.0,109640.0,1.005946]
[1758972936874,3.60567091,109650.0,109640.0,1.005946]
[1758972937089,3.56415011,109650.0,109640.0,1.005946]
[1758972937963,3.57846157,109650.0,109640.0,1.005946]
[1758972939389,3.57846157,109650.0,109640.0,0.57403685]
[1758972939597,3.60198157,109650.0,109640.0,0.57403685]
[1758972940404,3.60196283,109650.0,109640.0,0.57403685]
[1758972940881,3.6906743,109650.0,109640.0,0.57403685]
[1758972941047,3.6916743,109650.0,109640.0,0.57403685]
[1758972941311,3.6926743,109650.0,109640.0,0.59692685]
[1758972941940,3.3135543,109650.0,109640.0,0.59692685]
[1758972942121,3.6926743,109650.0,109640.0,0.59692685]
[1758972942876,3.6926743,109650.0,109640.0,0.18523566]
[1758972943839,3.6926743,109650.0,109640.0,0.14023566]
[1758972945385,3.3135543,109650.0,109640.0,0.14023566]
[1758972945595,3.6926743,109650.0,109640.0,0.14023566]
[1758972946137,3.3135543,109650.0,109640.0,0.14023566]
[1758972947543,3.5975943,109650.0,109640.0,0.14023566]
[1758972947764,3.6926743,109650.0,109640.0,0.14023566]
[1758972949219,3.69268103,109650.0,109640.0,0.14023566]
[1758972950728,3.69268103,109650.0,109640.0,0.1342171]
[1758972951699,3.69268103,109650.0,109640.0,0.0892171]
[1758972952143,3.69268103,109650.0,109640.0,0.0792171]
[1758972952360,3.67836957,109650.0,109640.0,0.0792171]
[1758972952550,3.29924957,109650.0,109640.0,0.0792171]
[1758972953328,3.67836957,109650.0,109640.0,0.0792171]
[1758972955063,3.69268175,109650.0,109640.0,0.0792171]
[1758972955280,3.31356175,109650.0,109640.0,0.0792171]
[1758972955654,3.69268175,109650.0,109640.0,0.0792171]
[1758972955866,3.31356175,109650.0,109640.0,0.0792171]
[1758972956094,3.69268175,109650.0,109640.0,0.0792171]
[1758972956565,3.67836957,109650.0,109640.0,0.0792171]
[1758972957437,3.58328957,109650.0,109640.0,0.0792171]
[1758972957868,3.67836957,109650.0,109640.0,0.0792171]
[1758972959074,3.67836957,109650.0,109640.0,0.0692171]
[1758972959275,3.6926817,109650.0,109640.0,0.0692171]
[1758972961094,3.3135617,109650.0,109640.0,0.0692171]
[1758972962384,3.6926817,109650.0,109640.0,0.0692171]
[1758972965178,3.67836957,109650.0,109640.0,0.0692171]
[1758972966756,3.60223436,109650.0,109640.0,0.0382171]
[1758972968491,3.61654658,109650.0,109640.0,0.0382171]
[1758972969555,3.23742658,109650.0,109640.0,0.0382171]
[1758972969764,3.61654658,109650.0,109640.0,0.0431771]
[1758972972098,3.23742658,109650.0,109640.0,0.0431771]
[1758972972297,3.61654658,109650.0,109640.0,0.0431771]
[1758972974207,0.52244845,109620.0,109610.0,0.09754088]
[1758972974433,3.75333512,109620.0,109610.0,0.09762563]
[1758972974634,3.77816512,109620.0,109610.0,0.09959563]
[1758972974847,3.79247805,109620.0,109610.0,0.09959563]
[1758972975269,3.77816512,109620.0,109610.0,0.02951015]
[1758972975605,3.65572212,109620.0,109610.0,0.02951015]
[1758972976016,3.65572212,109620.0,109610.0,0.03151015]
[1758972976240,3.65572212,109620.0,109610.0,0.03450015]
[1758972976653,3.65572212,109620.0,109610.0,0.03550015]
[1758972979682,3.67003537,109620.0,109610.0,0.03550015]
[1758972980186,3.21376635,109620.0,109610.0,0.03550015]
[1758972980400,1.96871135,109620.0,109610.0,0.03550015]
[1758972984582,1.5022229,109620.0,109610.0,0.03550015]
[1758972984714,1.6968229,109620.0,109610.0,0.03550015]
[1758972984914,1.68250965,109620.0,109610.0,0.03550015]
[1758972985589,1.8649581,109620.0,109610.0,0.03550015]
[1758972987697,1.68250965,109620.0,109610.0,0.03550015]
[1758972987886,1.8649581,109620.0,109610.0,0.03550015]
[1758972988087,1.87927142,109620.0,109610.0,0.03550015]
[1758972988306,1.82028942,109620.0,109610.0,0.03550015]
[1758972989477,1.04646597,109620.0,109610.0,0.05374666]
[1758972989696,0.38554297,109620.0,109610.0,0.08389856]
[1758972989931,0.38554297,109620.0,109610.0,0.26636366]
[1758972990160,0.38554297,109620.0,109610.0,0.24811715]
[1758972990557,0.38554297,109620.0,109610.0,0.06565205]
[1758972990705,0.38554297,109620.0,109610.0,0.08389856]
[1758972992584,0.38554297,109620.0,109610.0,0.26636366]
[1758972992803,0.38554297,109620.0,109610.0,0.24811715]
[1758972993541,0.38554297,109620.0,109610.0,0.06565205]
[1758972993747,0.38554297,109620.0,109610.0,0.08389856]
[1758972994482,0.38554297,109620.0,109610.0,0.57223968]
[1758972994690,0.38554297,109620.0,109610.0,0.55399317]
[1758972994913,0.38554297,109620.0,109610.0,0.37152807]
[1758972998496,0.37122965,109620.0,109610.0,0.37152807]
[1758973000161,0.37122965,109620.0,109610.0,0.06565205]
[1758973001442,0.38554241,109620.0,109610.0,0.06565205]
[1758973005633,0.37122965,109620.0,109610.0,0.06565205]
[1758973008550,0.37332965,109620.0,109610.0,0.06565205]
[1758973008749,0.38764224,109620.0,109610.0,0.06266205]
[1758973012046,0.38765168,109620.0,109610.0,0.06266205]
[1758973015144,0.37333909,109620.0,109610.0,0.06266205]
[1758973018092,0.38765168,109620.0,109610.0,0.06266205]
[1758973019655,0.46947247,109630.0,109610.0,0.06266205]
[1758973019856,0.18244845,109620.0,109610.0,0.06266205]
[1758973020068,0.01565276,109620.0,109610.0,0.05875665]
[1758973020484,0.01565276,109620.0,109610.0,0.08620893]
[1758973020709,0.01565276,109620.0,109610.0,0.08420893]
[1758973021039,0.01565276,109620.0,109610.0,0.08520893]
[1758973021465,0.01565276,109620.0,109610.0,0.08840893]
[1758973021911,0.03919276,109620.0,109610.0,0.08840893]